fUST/lending_fUST_20260304
["ID","MTS","AMOUNT","RATE_DAILY","PERIOD"]
[407597205,1772562646943,-500.0,0.00010958,2]
[407597207,1772562646953,-595.22092793,0.00010958,2]
[407597210,1772562646962,-500.0,0.00010958,2]
[407597213,1772562646971,-500.0,0.00010958,2]
[407597216,1772562646981,-3287.1559891,0.00010958,2]
[407597218,1772562646990,-1719.41,0.00010958,2]
[407597220,1772562646999,-500.0,0.00010958,2]
[407597223,1772562647010,-500.0,0.00010958,2]
[407597225,1772562647020,-520.15,0.00010958,2]
[407597227,1772562647031,-15076.31,0.00010958,2]
[407597229,1772562647040,-500.0,0.00010958,2]
[407597230,1772562647049,-500.0,0.00010958,2]
[407597232,1772562647058,-500.0,0.00010958,2]
[407597234,1772562647068,-4526.15,0.00010958,2]
[407597237,1772562647077,-10987.29,0.00010958,2]
[407597239,1772562647086,-500.0,0.00010958,2]
[407597241,1772562647096,-500.0,0.00010958,2]
[407597243,1772562647105,-2003.03,0.00010958,2]
[407597245,1772562647114,-850.29,0.00010958,2]
[407597247,1772562647123,-191.90218689,0.00010958,2]
[407597249,1772562647132,-500.0,0.00010958,2]
[407597251,1772562647141,-500.0,0.00010958,2]
[407597253,1772562647151,-500.0,0.00010958,2]
[407597255,1772562647161,-522.07550662,0.00010958,2]
[407597257,1772562647170,-1023.67,0.00010958,2]
[407597259,1772562647179,-500.0,0.00010958,2]
[407597261,1772562647189,-4828.38,0.00010958,2]
[407597263,1772562647199,-2063.71,0.00010958,2]
[407597265,1772562647208,-701.2,0.00010958,2]
[407597267,1772562647217,-500.0,0.00010958,2]
[407597268,1772562647226,-500.0,0.00010958,2]
[407597271,1772562647237,-500.0,0.00010958,2]
[407597273,1772562647246,-151.0,0.00010958,2]
[407597275,1772562647256,-500.0,0.00010958,2]
[407597277,1772562647265,-151.0,0.00010958,2]
[407597279,1772562647276,-991.66,0.00010958,2]
[407597281,1772562647286,-500.0,0.00010958,2]
[407597283,1772562647296,-265.26359,0.00010958,2]
[407597285,1772562647307,-500.0,0.00010958,2]
[407597287,1772562647317,-8461.92,0.00010958,2]
[407597289,1772562647327,-1834.94,0.00010958,2]
[407597290,1772562647337,-500.0,0.00010958,2]
[407597293,1772562647347,-4403.63,0.00010958,2]
[407597295,1772562647356,-500.0,0.00010958,2]
[407597297,1772562647365,-500.0,0.00010958,2]
[407597299,1772562647375,-3769.98,0.00010958,2]
[407597301,1772562647385,-9039.55,0.00010958,2]
[407597303,1772562647394,-500.0,0.00010958,2]
[407597305,1772562647403,-500.0,0.00010958,2]
[407597307,1772562647413,-636.79127752,0.00010958,2]
[407597309,1772562647422,-500.0,0.00010958,2]
[407597311,1772562647431,-644.56,0.00010958,2]
[407597313,1772562647440,-500.0,0.00010958,2]
[407597315,1772562647450,-6486.16,0.00010958,2]
[407597316,1772562647459,-500.0,0.00010958,2]
[407597319,1772562647468,-500.0,0.00010958,2]
[407597320,1772562647477,-4589.83,0.00010958,2]
[407597323,1772562647487,-500.0,0.00010958,2]
[407597325,1772562647496,-1127.3,0.00010958,2]
[407597326,1772562647505,-2606.18,0.00010958,2]
[407597329,1772562647515,-500.0,0.00010958,2]
[407597331,1772562647526,-294.24619409,0.00010958,2]
[407597333,1772562647535,-151.811166,0.00010959,2]
[407597334,1772562647545,-29899.13132824,0.00010991,2]
[407597336,1772562647555,-2105.41764886,0.00010993,2]
[407597339,1772562647564,-2000.0,0.00011,2]
[407597340,1772562647575,-2000.0,0.00011,2]
[407597342,1772562647584,-2000.0,0.00011,2]
[407597344,1772562647593,-2000.0,0.00011,2]
[407597346,1772562647602,-500.0,0.00011,2]
[407597349,1772562647612,-154.11,0.00011,2]
[407597351,1772562647625,-281.0,0.00011,2]
[407597353,1772562647635,-2048.0,0.00011,2]
[407597355,1772562647645,-104518.0,0.00011,2]
[407597357,1772562647654,-150.0,0.00011,2]
[407597359,1772562647665,-150.0,0.00011,2]
[407597361,1772562647674,-151.0,0.00011,2]
[407597363,1772562647684,-151.0,0.00011,2]
[407597365,1772562647696,-151.0,0.00011,2]
[407597367,1772562647705,-151.0,0.00011,2]
[407597369,1772562647715,-151.0,0.00011,2]
[407597371,1772562647724,-151.0,0.00011,2]
[407597373,1772562647733,-151.0,0.00011,2]
[407597375,1772562647743,-151.0,0.00011,2]
[407597377,1772562647752,-151.0,0.00011,2]
[407597379,1772562647762,-151.0,0.00011,2]
[407597381,1772562647772,-151.0,0.00011,2]
[407597383,1772562647783,-151.0,0.00011,2]
[407597385,1772562647792,-151.0,0.00011,2]
[407597387,1772562647802,-151.0,0.00011,2]
[407597389,1772562647811,-151.0,0.00011,2]
[407597391,1772562647821,-151.0,0.00011,2]
[407597393,1772562647831,-151.0,0.00011,2]
[407597395,1772562647841,-151.0,0.00011,2]
[407597397,1772562647850,-151.0,0.00011,2]
[407597399,1772562647860,-151.0,0.00011,2]
[407597401,1772562647869,-151.0,0.00011,2]
[407597403,1772562647879,-151.0,0.00011,2]
[407597405,1772562647888,-160.0,0.00011044,2]
[407597407,1772562647897,-2183.31810187,0.00011048,2]
[407597409,1772562647906,-2264.10087164,0.00011103,2]
[407597411,1772562647916,-1513.18509509,0.00011117,2]
[407597413,1772562647925,-11717.61460851,0.00011132,2]
[407597415,1772562647935,-2347.87260389,0.00011158,2]
[407597417,1772562647944,-2612.241288,0.00011167,2]
[407597419,1772562647953,-300.0,0.00011176,2]
[407597421,1772562647963,-300.0,0.00011176,2]
[407597423,1772562647972,-300.0,0.00011176,2]
[407597425,1772562647981,-300.0,0.00011176,2]
[407597427,1772562647991,-300.0,0.00011176,2]
[407597429,1772562647999,-300.0,0.00011176,2]
[407597431,1772562648009,-300.0,0.00011176,2]
[407597433,1772562648019,-300.0,0.00011176,2]
[407597435,1772562648030,-300.0,0.00011176,2]
[407597437,1772562648040,-300.0,0.00011176,2]
[407597439,1772562648049,-300.0,0.00011176,2]
[407597441,1772562648058,-300.0,0.00011176,2]
[407597443,1772562648068,-300.0,0.00011176,2]
[407597445,1772562648077,-300.0,0.00011176,2]
[407597447,1772562648086,-300.0,0.00011176,2]
[407597449,1772562648095,-600.0,0.00011176,2]
[407597451,1772562648105,-2434.74389024,0.00011213,2]
[407597453,1772562648115,-1724.10297217,0.00011225,2]
[407597455,1772562648124,-500.0,0.00011232,2]
[407597457,1772562648133,-500.14,0.00011232,2]
[407597459,1772562648142,-500.0,0.00011232,2]
[407597461,1772562648151,-389.18103727,0.00011232,2]
[407597463,1772562648160,-500.0,0.00011232,2]
[407597465,1772562648170,-500.0,0.00011232,2]
[407597467,1772562648179,-27105.14515802,0.00011232,2]
[407597469,1772562648188,-500.0,0.00011232,2]
[407597471,1772562648198,-500.0,0.00011232,2]
[407597473,1772562648207,-1062.91,0.00011232,2]
[407597475,1772562648217,-500.0,0.00011232,2]
[407597477,1772562648227,-646.28,0.00011232,2]
[407597479,1772562648236,-500.0,0.00011232,2]
[407597481,1772562648245,-897.48,0.00011232,2]
[407597483,1772562648254,-500.0,0.00011232,2]
[407597485,1772562648267,-2724.44,0.00011232,2]
[407597487,1772562648276,-500.0,0.00011232,2]
[407597489,1772562648286,-692.44,0.00011232,2]
[407597491,1772562648296,-500.0,0.00011232,2]
[407597493,1772562648306,-500.0,0.00011232,2]
[407597495,1772562648315,-866.86,0.00011232,2]
[407597497,1772562648326,-528.92,0.00011232,2]
[407597499,1772562648336,-684.23,0.00011232,2]
[407597501,1772562648345,-500.0,0.00011232,2]
[407597503,1772562648355,-500.0,0.00011232,2]
[407597505,1772562648365,-500.0,0.00011232,2]
[407597507,1772562648375,-500.0,0.00011232,2]
[407597509,1772562648384,-500.0,0.00011232,2]
[407597511,1772562648393,-1035.17,0.00011232,2]
[407597513,1772562648402,-1375.46,0.00011232,2]
[407597515,1772562648411,-511.99,0.00011232,2]
[407597517,1772562648421,-1072.03,0.00011232,2]
[407597519,1772562648431,-500.0,0.00011232,2]
[407597521,1772562648440,-1011.08,0.00011232,2]
[407597523,1772562648449,-500.0,0.00011232,2]
[407597525,1772562648458,-985.47,0.00011232,2]
[407597527,1772562648468,-691.52,0.00011232,2]
[407597529,1772562648477,-500.0,0.00011232,2]
[407597531,1772562648486,-581.11,0.00011232,2]
[407597533,1772562648496,-951.96,0.00011232,2]
[407597535,1772562648505,-1070.45,0.00011232,2]
[407597536,1772562648513,-500.0,0.00011232,2]
[407597538,1772562648523,-500.0,0.00011232,2]
[407597540,1772562648534,-500.0,0.00011232,2]
[407597542,1772562648544,-500.0,0.00011232,2]
[407597544,1772562648554,-500.0,0.00011232,2]
[407597546,1772562648564,-916.36,0.00011232,2]
[407597547,1772562648573,-500.0,0.00011232,2]
[407597549,1772562648582,-509.61,0.00011232,2]
[407597551,1772562648591,-500.0,0.00011232,2]
[407597553,1772562648600,-500.0,0.00011232,2]
[407597555,1772562648610,-924.54,0.00011232,2]
[407597557,1772562648619,-500.0,0.00011232,2]
[407597559,1772562648631,-944.06,0.00011232,2]
[407597561,1772562648640,-500.6062935,0.00011232,2]
[407597563,1772562648650,-1178.37,0.00011232,2]
[407597564,1772562648659,-500.0,0.00011232,2]
[407597566,1772562648668,-500.0,0.00011232,2]
[407597568,1772562648677,-519.24,0.00011232,2]
[407597570,1772562648686,-500.0,0.00011232,2]
[407597572,1772562648695,-881.64,0.00011232,2]
[407597574,1772562648709,-500.0,0.00011232,2]
[407597576,1772562648718,-500.0,0.00011232,2]
[407597578,1772562648727,-699.39,0.00011232,2]
[407597580,1772562648737,-500.0,0.00011232,2]
[407597582,1772562648747,-1196.7,0.00011232,2]
[407597584,1772562648756,-500.0,0.00011232,2]
[407597585,1772562648765,-531.99,0.00011232,2]
[407597587,1772562648775,-500.0,0.00011232,2]
[407597589,1772562648784,-500.0,0.00011232,2]
[407597591,1772562648794,-500.0,0.00011232,2]
[407597593,1772562648803,-500.0,0.00011232,2]
[407597595,1772562648812,-1259.95,0.00011232,2]
[407597597,1772562648821,-2117.33,0.00011232,2]
[407597599,1772562648830,-561.01,0.00011232,2]
[407597601,1772562648840,-585.47040797,0.00011232,2]
[407597602,1772562648849,-500.0,0.00011232,2]
[407597604,1772562648859,-500.0,0.00011232,2]
[407597606,1772562648868,-500.0,0.00011232,2]
[407597608,1772562648878,-599.91,0.00011232,2]
[407597610,1772562648887,-500.0,0.00011232,2]
[407597612,1772562648897,-500.0,0.00011232,2]
[407597614,1772562648906,-500.0,0.00011232,2]
[407597616,1772562648915,-833.82,0.00011232,2]
[407597618,1772562648924,-500.0,0.00011232,2]
[407597620,1772562648933,-553.06573096,0.00011232,2]
[407597622,1772562648942,-583.43893965,0.00011232,2]
[407597624,1772562648951,-500.0,0.00011232,2]
[407597626,1772562648960,-814.46,0.00011232,2]
[407597627,1772562648968,-500.0,0.00011232,2]
[407597629,1772562648977,-500.0,0.00011232,2]
[407597631,1772562648985,-500.0,0.00011232,2]
[407597633,1772562648993,-500.0,0.00011232,2]
[407597635,1772562649001,-500.0,0.00011232,2]
[407597637,1772562649010,-500.0,0.00011232,2]
[407597638,1772562649020,-1736.92,0.00011232,2]
[407597640,1772562649029,-1587.03,0.00011232,2]
[407597642,1772562649039,-500.0,0.00011232,2]
[407597644,1772562649048,-553.44127728,0.00011232,2]
[407597646,1772562649058,-500.0,0.00011232,2]
[407597648,1772562649067,-550.39,0.00011232,2]
[407597650,1772562649076,-1825.7,0.00011232,2]
[407597651,1772562649085,-537.57,0.00011232,2]
[407597653,1772562649094,-500.0,0.00011232,2]
[407597655,1772562649105,-782.07,0.00011232,2]
[407597657,1772562649114,-500.0,0.00011232,2]
[407597659,1772562649123,-625.25,0.00011232,2]
[407597661,1772562649132,-885.76,0.00011232,2]
[407597663,1772562649143,-1561.21,0.00011232,2]
[407597665,1772562649152,-500.0,0.00011232,2]
[407597666,1772562649162,-500.0,0.00011232,2]
[407597668,1772562649171,-500.0,0.00011232,2]
[407597670,1772562649181,-500.0,0.00011232,2]
[407597672,1772562649190,-500.0,0.00011232,2]
[407597673,1772562649199,-500.0,0.00011232,2]
[407597675,1772562649209,-500.0,0.00011232,2]
[407597677,1772562649219,-500.0,0.00011232,2]
[407597678,1772562649228,-2178.78,0.00011232,2]
[407597680,1772562649238,-500.0,0.00011232,2]
[407597682,1772562649247,-797.61,0.00011232,2]
[407597684,1772562649256,-500.0,0.00011232,2]
[407597686,1772562649266,-746.5,0.00011232,2]
[407597705,1772562649275,-544.02,0.00011232,2]
[407597708,1772562649488,-500.0,0.00011232,2]
[407597710,1772562649498,-500.0,0.00011232,2]
[407597712,1772562649507,-500.0,0.00011232,2]
[407597714,1772562649516,-500.0,0.00011232,2]
[407597715,1772562649527,-500.0,0.00011232,2]
[407597717,1772562649536,-500.0,0.00011232,2]
[407597719,1772562649545,-157.959341,0.00011232,2]
[407597721,1772562649554,-664.74,0.00011232,2]
[407597723,1772562649563,-893.57,0.00011232,2]
[407597724,1772562649573,-1083.13,0.00011232,2]
[407597725,1772562649582,-500.0,0.00011232,2]
[407597726,1772562649591,-789.75,0.00011232,2]
[407597727,1772562649600,-500.0,0.00011232,2]
[407597728,1772562649610,-687.07,0.00011232,2]
[407597729,1772562649621,-751.52,0.00011232,2]
[407597730,1772562649634,-500.0,0.00011232,2]
[407597731,1772562649644,-500.0,0.00011232,2]
[407597732,1772562649653,-500.0,0.00011232,2]
[407597733,1772562649663,-604.2,0.00011232,2]
[407597734,1772562649672,-570.79,0.00011232,2]
[407597735,1772562649681,-500.0,0.00011232,2]
[407597736,1772562649691,-500.0,0.00011232,2]
[407597737,1772562649703,-500.0,0.00011232,2]
[407597738,1772562649713,-720.74,0.00011232,2]
[407597739,1772562649723,-500.0,0.00011232,2]
[407597741,1772562649733,-1807.52,0.00011232,2]
[407597743,1772562649742,-500.0,0.00011232,2]
[407597744,1772562649752,-663.43,0.00011232,2]
[407597746,1772562649761,-546.35,0.00011232,2]
[407597748,1772562649771,-195.85093492,0.00011232,2]
[407597750,1772562649780,-663.85,0.00011232,2]
[407597751,1772562649790,-500.0,0.00011232,2]
[407597753,1772562649799,-500.0,0.00011232,2]
[407597754,1772562649810,-977.83,0.00011232,2]
[407597755,1772562649820,-627.41,0.00011232,2]
[407597756,1772562649829,-500.0,0.00011232,2]
[407597757,1772562649839,-500.0,0.00011232,2]
[407597758,1772562649848,-581.12,0.00011232,2]
[407597759,1772562649859,-814.86,0.00011232,2]
[407597760,1772562649869,-500.0,0.00011232,2]
[407597761,1772562649879,-500.0,0.00011232,2]
[407597762,1772562649890,-1164.19,0.00011232,2]
[407597763,1772562649900,-500.0,0.00011232,2]
[407597764,1772562649909,-556.88,0.00011232,2]
[407597765,1772562649919,-500.0,0.00011232,2]
[407597766,1772562649929,-192.76418947,0.00011232,2]
[407597767,1772562649939,-1475.7,0.00011232,2]
[407597768,1772562649949,-2020.85,0.00011232,2]
[407597769,1772562649958,-500.0,0.00011232,2]
[407597770,1772562649968,-1651.98,0.00011232,2]
[407597771,1772562649979,-500.0,0.00011232,2]
[407597772,1772562649989,-881.81,0.00011232,2]
[407597773,1772562649999,-1471.01,0.00011232,2]
[407597774,1772562650009,-553.22,0.00011232,2]
[407597775,1772562650019,-7713.96,0.00011232,2]
[407597776,1772562650031,-500.0,0.00011232,2]
[407597777,1772562650040,-500.0,0.00011232,2]
[407597778,1772562650050,-500.0,0.00011232,2]
[407597779,1772562650060,-500.0,0.00011232,2]
[407597780,1772562650070,-500.0,0.00011232,2]
[407597781,1772562650081,-500.0,0.00011232,2]
[407597782,1772562650093,-500.0,0.00011232,2]
[407597783,1772562650104,-607.37589562,0.00011232,2]
[407597784,1772562650114,-500.0,0.00011232,2]
[407597785,1772562650125,-4522.4,0.00011232,2]
[407597786,1772562650134,-500.0,0.00011232,2]
[407597787,1772562650145,-500.0,0.00011232,2]
[407597788,1772562650155,-500.0,0.00011232,2]
[407597789,1772562650165,-3155.44,0.00011232,2]
[407597790,1772562650175,-500.0,0.00011232,2]
[407597791,1772562650185,-500.0,0.00011232,2]
[407597792,1772562650195,-1483.66,0.00011232,2]
[407597793,1772562650204,-500.0,0.00011232,2]
[407597794,1772562650215,-1323.15,0.00011232,2]
[407597795,1772562650225,-500.0,0.00011232,2]
[407597796,1772562650236,-500.0,0.00011232,2]
[407597797,1772562650250,-500.0,0.00011232,2]
[407597798,1772562650259,-500.0,0.00011232,2]
[407597799,1772562650269,-500.0,0.00011232,2]
[407597800,1772562650280,-820.92,0.00011232,2]
[407597801,1772562650289,-987.01,0.00011232,2]
[407597802,1772562650298,-1695.18,0.00011232,2]
[407597803,1772562650307,-537.32,0.00011232,2]
[407597804,1772562650315,-323.49373932,0.00011232,2]
[407597805,1772562650323,-5346.25,0.00011232,2]
[407597806,1772562650333,-500.0,0.00011232,2]
[407597807,1772562650343,-500.0,0.00011232,2]
[407597808,1772562650353,-1076.29,0.00011232,2]
[407597809,1772562650363,-625.0,0.00011232,2]
[407597810,1772562650371,-500.0,0.00011232,2]
[407597811,1772562650381,-500.0,0.00011232,2]
[407597812,1772562650390,-500.0,0.00011232,2]
[407597813,1772562650398,-1449.85,0.00011232,2]
[407597814,1772562650407,-500.0,0.00011232,2]
[407597815,1772562650417,-500.0,0.00011232,2]
[407597816,1772562650427,-500.0,0.00011232,2]
[407597817,1772562650438,-500.0,0.00011232,2]
[407597818,1772562650448,-1313.17,0.00011232,2]
[407597819,1772562650458,-205.60916606,0.00011232,2]
[407597820,1772562650469,-1835.69,0.00011232,2]
[407597821,1772562650479,-506.99,0.00011232,2]
[407597822,1772562650489,-500.0,0.00011232,2]
[407597823,1772562650499,-500.0,0.00011232,2]
[407597824,1772562650510,-500.0,0.00011232,2]
[407597825,1772562650520,-500.0,0.00011232,2]
[407597826,1772562650532,-2166.3,0.00011232,2]
[407597827,1772562650542,-1834.41,0.00011232,2]
[407597828,1772562650553,-538.53,0.00011232,2]
[407597829,1772562650564,-500.0,0.00011232,2]
[407597830,1772562650574,-500.0,0.00011232,2]
[407597831,1772562650585,-3189.89,0.00011232,2]
[407597832,1772562650595,-1399.26,0.00011232,2]
[407597833,1772562650606,-1055.53,0.00011232,2]
[407597834,1772562650617,-500.0,0.00011232,2]
[407597835,1772562650631,-1897.3,0.00011232,2]
[407597836,1772562650641,-500.0,0.00011232,2]
[407597837,1772562650651,-500.0,0.00011232,2]
[407597838,1772562650663,-500.0,0.00011232,2]
[407597839,1772562650674,-1112.59,0.00011232,2]
[407597840,1772562650685,-1126.17,0.00011232,2]
[407597841,1772562650696,-569.63,0.00011232,2]
[407597842,1772562650706,-500.0,0.00011232,2]
[407597843,1772562650716,-500.0,0.00011232,2]
[407597844,1772562650725,-500.0,0.00011232,2]
[407597845,1772562650735,-2199.79,0.00011232,2]
[407597846,1772562650744,-692.81,0.00011232,2]
[407597847,1772562650754,-2013.8,0.00011232,2]
[407597848,1772562650764,-500.0,0.00011232,2]
[407597849,1772562650775,-500.0,0.00011232,2]
[407597850,1772562650786,-4480.29,0.00011232,2]
[407597851,1772562650797,-1093.45,0.00011232,2]
[407597852,1772562650807,-534.72,0.00011232,2]
[407597853,1772562650819,-500.0,0.00011232,2]
[407597854,1772562650829,-557.03,0.00011232,2]
[407597855,1772562650840,-3017.51,0.00011232,2]
[407597856,1772562650850,-174.6260164,0.00011232,2]
[407597857,1772562650861,-500.0,0.00011232,2]
[407597858,1772562650871,-1394.56,0.00011232,2]
[407597859,1772562650882,-500.0,0.00011232,2]
[407597860,1772562650892,-500.0,0.00011232,2]
[407597861,1772562650903,-549.81,0.00011232,2]
[407597862,1772562650914,-862.79,0.00011232,2]
[407597863,1772562650924,-699.21,0.00011232,2]
[407597864,1772562650935,-500.0,0.00011232,2]
[407597865,1772562650946,-864.34,0.00011232,2]
[407597866,1772562650956,-500.0,0.00011232,2]
[407597867,1772562650967,-500.0,0.00011232,2]
[407597868,1772562650978,-829.11,0.00011232,2]
[407597869,1772562650989,-500.0,0.00011232,2]
[407597870,1772562650999,-1056.57,0.00011232,2]
[407597871,1772562651010,-500.0,0.00011232,2]
[407597872,1772562651020,-1017.88,0.00011232,2]
[407597873,1772562651032,-785.16,0.00011232,2]
[407597874,1772562651042,-987.97,0.00011232,2]
[407597875,1772562651052,-500.0,0.00011232,2]
[407597876,1772562651062,-500.0,0.00011232,2]
[407597877,1772562651075,-5184.84,0.00011232,2]
[407597878,1772562651085,-500.0,0.00011232,2]
[407597879,1772562651097,-1711.43,0.00011232,2]
[407597880,1772562651107,-1311.19,0.00011232,2]
[407597881,1772562651117,-298.33071359,0.00011232,2]
[407597882,1772562651127,-3003.78,0.00011232,2]
[407597883,1772562651137,-500.0,0.00011232,2]
[407597884,1772562651147,-1226.86,0.00011232,2]
[407597885,1772562651156,-650.24,0.00011232,2]
[407597886,1772562651167,-500.0,0.00011232,2]
[407597887,1772562651176,-1510.11,0.00011232,2]
[407597888,1772562651185,-2261.3,0.00011232,2]
[407597889,1772562651195,-2317.99,0.00011232,2]
[407597890,1772562651204,-500.0,0.00011232,2]
[407597891,1772562651214,-846.42,0.00011232,2]
[407597892,1772562651224,-2344.63,0.00011232,2]
[407597893,1772562651234,-251.67709336,0.00011232,2]
[407597894,1772562651243,-489.77062021,0.00011232,2]
[407597895,1772562651252,-2330.28,0.00011232,2]
[407597896,1772562651262,-688.06,0.00011232,2]
[407597897,1772562651272,-647.12,0.00011232,2]
[407597898,1772562651283,-1504.24,0.00011232,2]
[407597899,1772562651293,-500.0,0.00011232,2]
[407597900,1772562651303,-500.0,0.00011232,2]
[407597901,1772562651312,-519.04,0.00011232,2]
[407597902,1772562651321,-500.0,0.00011232,2]
[407597903,1772562651332,-336.89655022,0.00011232,2]
[407597904,1772562651342,-524.35,0.00011232,2]
[407597905,1772562651352,-500.0,0.00011232,2]
[407597906,1772562651362,-962.08,0.00011232,2]
[407597907,1772562651374,-3662.27,0.00011232,2]
[407597908,1772562651384,-2202.43,0.00011232,2]
[407597909,1772562651394,-1158.59,0.00011232,2]
[407597910,1772562651405,-1444.23,0.00011232,2]
[407597911,1772562651416,-859.74,0.00011232,2]
[407597912,1772562651426,-385.46358012,0.00011232,2]
[407597913,1772562651436,-500.0,0.00011232,2]
[407597914,1772562651445,-500.0,0.00011232,2]
[407597915,1772562651455,-500.0,0.00011232,2]
[407597916,1772562651464,-951.46,0.00011232,2]
[407597917,1772562651474,-500.0,0.00011232,2]
[407597918,1772562651484,-500.0,0.00011232,2]
[407597919,1772562651494,-1590.78,0.00011232,2]
[407597920,1772562651505,-500.0,0.00011232,2]
[407597921,1772562651515,-540.77,0.00011232,2]
[407597922,1772562651525,-3376.14,0.00011232,2]
[407597923,1772562651535,-500.0,0.00011232,2]
[407597924,1772562651546,-500.0,0.00011232,2]
[407597925,1772562651556,-500.0,0.00011232,2]
[407597926,1772562651567,-500.0,0.00011232,2]
[407597927,1772562651578,-1686.6,0.00011232,2]
[407597928,1772562651588,-727.67,0.00011232,2]
[407597929,1772562651599,-500.0,0.00011232,2]
[407597930,1772562651609,-500.0,0.00011232,2]
[407597931,1772562651619,-500.0,0.00011232,2]
[407597932,1772562651630,-1313.95,0.00011232,2]
[407597933,1772562651640,-500.0,0.00011232,2]
[407597934,1772562651651,-1126.58,0.00011232,2]
[407597935,1772562651662,-6866.74,0.00011232,2]
[407597936,1772562651675,-500.0,0.00011232,2]
[407597937,1772562651685,-500.0,0.00011232,2]
[407597938,1772562651697,-874.38,0.00011232,2]
[407597939,1772562651708,-500.0,0.00011232,2]
[407597940,1772562651718,-2992.81,0.00011232,2]
[407597941,1772562651728,-2139.14,0.00011232,2]
[407597942,1772562651738,-500.0,0.00011232,2]
[407597943,1772562651748,-1270.33,0.00011232,2]
[407597944,1772562651758,-500.0,0.00011232,2]
[407597945,1772562651768,-2120.53,0.00011232,2]
[407597946,1772562651779,-500.0,0.00011232,2]
[407597947,1772562651788,-917.33,0.00011232,2]
[407597948,1772562651799,-500.0,0.00011232,2]
[407597949,1772562651808,-500.0,0.00011232,2]
[407597950,1772562651818,-500.0,0.00011232,2]
[407597951,1772562651828,-500.0,0.00011232,2]
[407597952,1772562651838,-440.42126234,0.00011232,2]
[407597953,1772562651848,-922.84,0.00011232,2]
[407597954,1772562651858,-500.0,0.00011232,2]
[407597955,1772562651867,-389.73,0.00011232,2]
[407597956,1772562651878,-598.68741912,0.00011232,2]
[407597957,1772562651894,-500.0,0.00011232,2]
[407597958,1772562651904,-500.0,0.00011232,2]
[407597959,1772562651914,-500.0,0.00011232,2]
[407597960,1772562651924,-500.0,0.00011232,2]
[407597961,1772562651934,-1151.35,0.00011232,2]
[407597962,1772562651944,-500.0,0.00011232,2]
[407597963,1772562651954,-1049.99,0.00011232,2]
[407597964,1772562651964,-500.0,0.00011232,2]
[407597965,1772562651974,-500.0,0.00011232,2]
[407597966,1772562651983,-500.0,0.00011232,2]
[407597967,1772562651993,-500.0,0.00011232,2]
[407597968,1772562652004,-857.45,0.00011232,2]
[407597969,1772562652014,-500.0,0.00011232,2]
[407597970,1772562652025,-1212.29,0.00011232,2]
[407597971,1772562652035,-500.0,0.00011232,2]
[407597972,1772562652045,-2292.67,0.00011232,2]
[407597973,1772562652055,-500.0,0.00011232,2]
[407597974,1772562652065,-5055.38,0.00011232,2]